Cogmind - Beta 15 @@@ ROGUE MODE // 2025.06.07 @ 14:31:33 Player: Zaros426 Result: Destroyed by B-75 Beast with Magnetic Acceleration Cannon Performance ------------- Evolutions (4) 2000 Regions Visited (8) 1600 Robots Destroyed (103) 515 Value Destroyed (2647) 2647 Prototype IDs (33) 660 Alien Tech Used (0) 0 Bonus (1467) 1467 TOTAL SCORE: 8889 Bonus ------- High Alert Combat Kills 28 Follower Combat Kills 639 Registered with UFD 300 Met Optimus in HQ 500 Cogmind --------- Core Integrity 0/850 Matter 98/300 Energy 90/100 System Corruption 23% Temperature Cool (2) Movement Flying (35) Location -6/Factory Parts ------- > --- POWER (1) -------- (None) > --- PROPULSION (6) --- VTOL Module > --- UTILITY (6) ------ Target Analyzer Core Analyzer A0-MCA's Component Scanner > --- WEAPON (2) ------- (None) > --- INVENTORY (5) ---- Experimental Terrain Scanner Kinecellerator Improved Trap Extractor (0/6) Magnetic Acceleration Cannon CPS Tube (1) Peak State ------------ > --- POWER ------------ Micro Nuclear Core > --- PROPULSION ------- Armored Treads Compact Wheel Flightbrick > --- UTILITY ---------- Large Storage Unit Enhanced Optical Array Experimental Terrain Scanner Core Analyzer Core Analyzer ECM Suite Makeshift Hacking Suite A0-MCA's Component Scanner > --- WEAPON ----------- Precision Assault Rifle Heavy Flak Cannon > --- INVENTORY -------- Improved VSS Leg Improved VSS Leg Improved VSS Leg Improved VSS Leg Nuclear Pulse Thruster Energy Well Cloaking Device Improved Trap Extractor Shock Bomb Launcher Improved Grenade Launcher Plasma Cutter CPS Tube Shock Trap Shock Trap Shock Trap [Rating: 96] Favorites ----------- Power Subdweller Power Source Engine Subdweller Power Source Power Core Light Fission Core Propulsion Advanced Treads Treads Advanced Treads Leg Improved VSS Leg Wheel Subdweller Monowheel Hover Unit Gravmag System Flight Unit Flightbrick Utility Humpback Device ECM Suite Storage Humpback Processor Core Analyzer Hackware Makeshift Hacking Suite Protection Scrap Shield Weapon Powered Cannon Energy Gun Small Laser Energy Cannon Powered Cannon Ballistic Gun Shotgun Ballistic Cannon Assault Cannon Launcher Shock Bomb Launcher Special Weapon CPS Tube Build | -11 -10 -10 -10 -8 -8 -6 -6 -6 ------- Run | Yrd Mat Min Sub Rec Scr Fac Was Fac Slots Evolved 8 | . . . . . . 8 . . Power . | . . . . . . . . . Propulsion 4 | . . . . . . 4 . . Utility 4 | . . . . . . 4 . . Weapon . | . . . . . . . . . Parts Attached 89 | 8 10 2 16 6 6 16 . 25 Power 13 | 1 1 . 4 . 2 3 . 2 Engine 9 | 1 1 . 4 . . 1 . 2 Core 4 | . . . . . 2 2 . . Reactor . | . . . . . . . . . Propulsion 31 | 2 . . 7 6 2 4 . 10 Treads 9 | 2 . . 1 5 1 . . . Leg 7 | . . . . . . . . 7 Wheel 11 | . . . 6 1 1 1 . 2 Hover 1 | . . . . . . 1 . . Flight 3 | . . . . . . 2 . 1 Utility 23 | 2 4 . 2 . 2 7 . 6 Device 9 | 1 . . . . 1 3 . 4 Storage 5 | 1 2 . 1 . . . . 1 Processor 5 | . . . . . . 4 . 1 Hackware 2 | . 1 . . . 1 . . . Protection 2 | . 1 . 1 . . . . . Artifact . | . . . . . . . . . Weapon 22 | 3 5 2 3 . . 2 . 7 Energy Gun 3 | 2 . . . . . . . 1 Energy Cannon 6 | . 2 1 3 . . . . . Ballistic Gun 5 | 1 1 1 . . . 1 . 1 Ballistic Cannon 3 | . . . . . . 1 . 2 Launcher 3 | . 1 . . . . . . 2 Special Weapon 2 | . 1 . . . . . . 1 Impact Weapon . | . . . . . . . . . Slashing Weapon . | . . . . . . . . . Piercing Weapon . | . . . . . . . . . Special Melee Weapon . | . . . . . . . . . Unidentified Prototypes 1 | . . . . . . 1 . . Parts Lost 25 | . . . 1 . . 2 2 20 Power 4 | . . . . . . 1 . 3 Propulsion 12 | . . . 1 . . . 1 10 Utility 2 | . . . . . . . . 2 Weapon 7 | . . . . . . 1 1 5 Highest Loss Streak 6 | . . . 1 . . 1 2 6 To Critical Strikes 2 | . . . . . . . 2 . Average Backups 19 | 2 9 14 10 26 23 9 12 10 Power . | . . . . . . . . . Propulsion 2 | . . . 2 5 3 1 4 1 Utility 9 | . 2 7 4 11 12 3 3 5 Weapon 5 | 1 5 5 3 9 6 2 2 . Tool/Special . | . . . . . . . . . Unused Backups 67 | 1 2 2 4 3 40 7 1 7 Power . | . . . . . . . . . Propulsion 7 | . . . . 2 3 1 1 . Utility 37 | . 1 1 3 1 23 4 . 4 Weapon 19 | 1 1 . 1 . 13 2 . 1 Tool/Special 4 | . . 1 . . 1 . . 2 Average Slot Usage (%) 66 | . 100 100 73 62 60 56 71 71 Engine 8 | . 14 14 12 12 6 1 . 1 Core 2 | . . . . . 3 2 5 1 Treads 19 | . 28 28 5 20 23 3 2 . Wheel 4 | . . . 20 4 1 6 5 4 Device 1 | . 6 . . . . 10 11 6 Storage 10 | . 14 14 5 12 12 5 5 6 Processor 1 | . . . . . . 8 22 23 Protection 1 | . . 14 7 . . . . . Energy Cannon 12 | . 23 14 15 12 12 2 . . Ballistic Gun 1 | . 2 13 4 . . 2 3 . Peak Build Rating 96 | 7 13 11 30 33 39 96 96 93 Average Rating 32 | 5 10 10 21 31 33 82 91 66 On Entrance 33 | . 7 11 11 29 33 30 96 83 Naked Turns . | . . . . . . . . . Heaviest Build 216 | 14 36 36 214 214 216 47 41 48 Greatest Support 90 | 40 40 40 40 46 44 26 16 90 Greatest Overweight (x) 20 | . . . 10 7 20 4 2 3 Average Overweight (x) 3 | . . . 3 5 6 1 1 . Largest Inventory Capacity 35 | 8 15 15 35 35 35 15 15 15 Average Capacity 28 | 7 10 15 18 35 34 15 15 14 Most Carried 35 | 5 15 15 35 35 35 15 15 15 Average Carried 25 | 2 9 14 14 34 30 12 15 10 Final Capacity 35 | 8 15 15 35 35 15 15 15 5 Final Carried 35 | 4 14 15 35 35 15 15 15 5 Class Distribution -------------------- 72% | Hauler-Mutant 21% | Mutant 4% | Subdweller-Mutant Dominant Class ---------------- Mutant | -10/Materials Mutant | -10/Mines Hauler-Mutant | -10/Subcaves Hauler-Mutant | -8/Recycling Hauler-Mutant | -8/Scraptown Mutant | -6/Factory Mutant | -6/Waste Mutant | -6/Factory Resources | -11 -10 -10 -10 -8 -8 -6 -6 -6 ----------- Run | Yrd Mat Min Sub Rec Scr Fac Was Fac Matter Collected 2333 | 331 337 292 334 60 103 227 173 476 Remotely . | . . . . . . . . . Salvage Created 3440 | 237 998 253 447 213 . 451 173 668 Parts 217 | 21 73 32 23 13 . 17 . 38 Haulers Intercepted 1 | . 1 . . . . . . . Recyclers Shooed 3 | 1 1 1 . . . . . . Parts Field Recycled 4 | . . . . . . . . 4 Retrieved Matter 85 | . . . . . . . . 85 Parts Self-Destructed 8 | . . . 8 . . . . . Prevented . | . . . . . . . . . Kills | -11 -10 -10 -10 -8 -8 -6 -6 -6 ------- Run | Yrd Mat Min Sub Rec Scr Fac Was Fac Combat Hostiles Destroyed 59 | . 16 8 10 3 . 6 1 15 Guns 13 | . 2 4 2 . . 3 1 1 Cannons 24 | . 5 2 7 2 . 2 . 6 AOE 21 | . 9 2 1 . . 1 . 8 Classes Destroyed 16 | 3 6 . 2 1 . 1 1 2 Worker 12 | 2 9 1 . . . . . . Builder 6 | . 3 1 . . . . . 2 Tunneler 9 | 6 2 1 . . . . . . Hauler 1 | . 1 . . . . . . . Recycler 8 | 1 4 1 . 1 . 1 . . Operator 3 | . 2 . . . . . . 1 Turret 2 | . . . 2 . . . . . Watcher 3 | . 3 . . . . . . . Swarmer 17 | . 9 6 1 . . . . 1 Grunt 22 | . 7 2 . . . 4 . 9 Brawler 1 | . . . . . . . . 1 Sentry 4 | . . . . 3 . . . 1 Hunter 3 | . . . . . . 2 . 1 Programmer 2 | . . . . . . . . 2 Compactor 1 | . . . . . . . 1 . Subdweller 9 | . . . 9 . . . . . Best Kill Streak 9 | 4 9 3 2 2 . 2 1 5 Combat Bots Only 5 | . 5 3 2 2 . 2 1 4 Max Kills in Single Turn 4 | 2 4 2 1 1 . 1 1 3 Gunslinging . | . . . . . . . . . Exploded 3 | . 3 2 1 . . 1 . 3 Melee . | . . . . . . . . . Uniques/NPCs Destroyed . | . . . . . . . . . Combat | -11 -10 -10 -10 -8 -8 -6 -6 -6 -------- Run | Yrd Mat Min Sub Rec Scr Fac Was Fac Hostile Shots Fired 469 | . 35 26 87 6 . 35 6 274 Missed 134 | . 12 3 32 2 . 9 . 76 Hits 335 | . 23 23 55 4 . 26 6 198 Melee 6 | . . . . . . . 6 . Projectile 329 | . 23 23 55 4 . 26 . 198 AOE 2 | . . . . . . . . 2 Critical Strikes 8 | . . 1 . . . . 3 4 Damage Taken 6147 | . 260 236 733 63 . 933 284 3638 Core 1040 | . 42 41 95 . . 86 . 776 Absorbed by Shields 133 | . . . . . . . . 133 Core Remaining (%) 64 | 100 . . . . 28 . . . Volleys Fired 283 | 17 51 32 37 31 . 35 10 70 Largest 2 | 2 2 2 2 1 . 2 2 2 Hottest 160 | 60 136 136 160 40 . 72 72 87 Shots Fired 411 | 33 89 54 63 31 . 40 19 82 Gun 116 | 33 8 27 12 . . 14 9 13 Cannon 262 | . 70 26 50 31 . 26 10 49 Launcher 30 | . 9 1 1 . . . . 19 Special 3 | . 2 . . . . . . 1 Kinetic 151 | 17 8 27 12 . . 19 19 49 Thermal 208 | 8 72 26 50 31 . 21 . . Explosive 16 | . 9 1 1 . . . . 5 Electromagnetic 35 | 8 . . . . . . . 27 Robot Hit Streak 9 | 5 6 7 8 6 . 5 9 7 Robot Miss Streak 7 | 4 5 7 1 1 . 7 4 3 Penetration Max . | . . . . . . . . . Secondary Targets . | . . . . . . . . . Shots Hit Robots 223 | 17 47 33 36 7 . 23 18 42 Core Hits 166 | 10 45 19 15 3 . 16 11 47 Critical Kills 1 | . . . . 1 . . . . Critical Parts Destroyed . | . . . . . . . . . Critical Strikes 3 | . . . . 1 . . . 2 Meltdown 1 | . . . . 1 . . . . Blast 2 | . . . . . . . . 2 Melee Attacks . | . . . . . . . . . Impact . | . . . . . . . . . Slashing . | . . . . . . . . . Piercing . | . . . . . . . . . Sneak Attacks . | . . . . . . . . . Combat Hostiles . | . . . . . . . . . Follow-up Attacks . | . . . . . . . . . Damage Inflicted 6990 | 223 1651 594 1055 358 . 861 464 1784 Guns 1232 | 223 71 272 151 . . 192 172 151 Cannons 3618 | . 871 232 711 358 . 517 292 637 Explosions 2135 | . 709 90 193 . . 152 . 991 Melee . | . . . . . . . . . Ramming 5 | . . . . . . . . 5 Kinetic 1962 | 111 71 272 151 . . 256 464 637 Thermal 2893 | 56 871 232 711 358 . 453 . 212 Explosive 1654 | . 709 90 193 . . 152 . 510 Electromagnetic 476 | 56 . . . . . . . 420 Impact . | . . . . . . . . . Slashing . | . . . . . . . . . Piercing . | . . . . . . . . . Highest Corruption 25 | . . . . . . 1 25 25 Average Corruption 22 | . . . . . . 1 15 23 Corruption Purged 6 | . . . . . . 1 . 5 Corruption Blocked . | . . . . . . . . . Effects 90 | . . . . . . . 10 80 Message Errors 22 | . . . . . . . 3 19 Matter Fused 19 | . . . . . . . 3 16 Heat Flow Errors 8 | . . . . . . . 1 7 Energy Discharges 12 | . . . . . . . . 12 Data Loss (minor) 10 | . . . . . . . 2 8 Data Loss (major) 1 | . . . . . . . . 1 Misfires 5 | . . . . . . . . 5 Alerts 1 | . . . . . . . . 1 Misdirections 6 | . . . . . . . . 6 Weapon Failures 6 | . . . . . . . 1 5 Overload Shots . | . . . . . . . . . Overflow Damage 283 | . 52 2 105 22 . 22 . 80 Projectiles 172 | . 23 2 103 22 . 22 . . Explosions 111 | . 29 . 2 . . . . 80 Melee . | . . . . . . . . . Knockbacks 8 | . . . . . . 2 . 6 Impact . | . . . . . . . . . Kinetic 7 | . . . . . . 2 . 5 Secondary 1 | . . . . . . . . 1 Self-Inflicted Damage 557 | . 24 15 31 . . 83 . 404 Shots 11 | . 1 1 1 . . 1 . 7 Rammed . | . . . . . . . . . Targets Rammed 3 | . . . . . . . . 3 Kicked 3 | . . . . . . . . 3 Crushed . | . . . . . . . . . Highest Temperature 495 | . 495 294 84 39 . 41 76 237 Average Temperature 79 | . 103 91 32 15 . 14 46 60 Received Heat Transfer 1284 | . 87 54 261 18 . 141 . 723 Effects 5 | . 5 . . . . . . . Shutdowns 1 | . 1 . . . . . . . Energy Bleed 2 | . 2 . . . . . . . Interference 2 | . 2 . . . . . . . Siege Activations . | . . . . . . . . . Martial Activations . | . . . . . . . . . Shielding Activations . | . . . . . . . . . Robots Disrupted . | . . . . . . . . . Combat Hostiles . | . . . . . . . . . Robots Corrupted . | . . . . . . . . . Combat Hostiles . | . . . . . . . . . Parts Fried 3 | . . . . . . . . 3 Impact Corruptions . | . . . . . . . . . Robots Melted 1 | . . . . 1 . . . . Combat Hostiles 1 | . . . . 1 . . . . Parts Melted 6 | . 4 . 1 1 . . . . Heat Transferred 2865 | 125 1554 407 629 . . . . 150 Parts Sabotaged . | . . . . . . . . . Parts Stolen . | . . . . . . . . . Parts Stripped . | . . . . . . . . . Power Chain Reactions 2 | . . . . . . . . 2 Alert | -11 -10 -10 -10 -8 -8 -6 -6 -6 ------- Run | Yrd Mat Min Sub Rec Scr Fac Was Fac Maximum Alert Level 2 | . 1 . . . . 2 . 2 Low Security (%) 84 | 100 86 100 . 100 . 58 100 38 Level 1 12 | . 13 . . . . 8 . 55 Level 2 3 | . . . . . . 32 . 6 Level 3 . | . . . . . . . . . Level 4 . | . . . . . . . . . Level 5 . | . . . . . . . . . High Security . | . . . . . . . . . Max Security . | . . . . . . . . . Peak Influence 465 | 10 270 129 . 59 . 465 152 424 Initial 152 | . . 50 . . . . 152 15 Average 81 | 1 107 29 . 3 . 216 91 214 Influence Increases 3135 | 45 687 219 173 243 . 728 . 1040 Destroy 0b10 Robot/C 1300 | . 320 160 80 60 . 380 . 300 Destroy 0b10 Robot/NC 210 | 45 120 20 . 5 . 5 . 15 Destroy Leader 278 | . 68 30 . . . 90 . 90 Allied During Kill 59 | . . . 3 . . 56 . . Trap Triggered on 0b10 30 | . . . . . . . . 30 Successful Hack 80 | . 35 . . 36 . . . 9 Select Force Hacks 180 | . 60 . . 120 . . . . Disable Machine 300 | . 15 . . . . 135 . 150 Destroy Structure 263 | . 69 9 . 22 . 62 . 101 Lose Combat Pursuer 435 | . . . 90 . . . . 345 Influence Decreases 2731 | 45 557 349 173 243 . 293 413 658 Entered New Map 370 | . . 80 . . . . 283 7 Time Decay 2111 | 45 557 269 153 243 . 273 110 461 Lost Part 230 | . . . . . . 20 20 190 Lost Ally 20 | . . . 20 . . . . . Squads Dispatched 17 | . 3 . . . . 6 . 8 Investigation 10 | . 2 . . . . 5 . 3 Extermination 4 | . . . . . . 1 . 3 Reinforcement 3 | . 1 . . . . . . 2 Assault . | . . . . . . . . . Garrison . | . . . . . . . . . Intercept . | . . . . . . . . . Searches Triggered . | . . . . . . . . . Construction Impeded 2 | . . . . . . . . 2 Haulers Reinforced . | . . . . . . . . . Active Scanning Responses . | . . . . . . . . . Cargo Convoy Interrupts . | . . . . . . . . . Stealth | -11 -10 -10 -10 -8 -8 -6 -6 -6 --------- Run | Yrd Mat Min Sub Rec Scr Fac Was Fac Distress Signals 1 | . . 1 . . . . . . Communications Jammed . | . . . . . . . . . Distress Signals . | . . . . . . . . . Times Spotted 121 | . 23 8 22 3 . 17 6 42 Peak Tracking Total 10 | . 5 3 6 2 . 3 5 10 Tactical Retreats 15 | . . . 2 . . . . 13 Traps | -11 -10 -10 -10 -8 -8 -6 -6 -6 ------- Run | Yrd Mat Min Sub Rec Scr Fac Was Fac Traps Triggered 1 | . . . . . . 1 . . Indirectly . | . . . . . . . . . Trap Hack Attempts . | . . . . . . . . . Triggered . | . . . . . . . . . Disarmed . | . . . . . . . . . Reprogrammed . | . . . . . . . . . Reused 3 | . . . . . . . . 3 Traps Extracted . | . . . . . . . . . Installed 3 | . . . . . . . . 3 Triggered 3 | . . . . . . . . 3 Most Traps Carried 6 | . . 3 6 4 4 3 3 3 Machines | -11 -10 -10 -10 -8 -8 -6 -6 -6 ---------- Run | Yrd Mat Min Sub Rec Scr Fac Was Fac Machines Disabled 21 | . 1 . 1 . . 9 . 10 Max in Single Turn 6 | . 1 . 1 . . 2 . 6 Machines Repaired . | . . . . . . . . . Machines Dismantled . | . . . . . . . . . Machines Sabotaged . | . . . . . . . . . Overloaded Fab Kills . | . . . . . . . . . Hacking | -11 -10 -10 -10 -8 -8 -6 -6 -6 --------- Run | Yrd Mat Min Sub Rec Scr Fac Was Fac Machines Accessed 40 | . 8 . 2 12 9 6 . 3 Terminals 18 | . 6 . . 6 . 3 . 3 Fabricators 1 | . . . . . . 1 . . Repair Stations . | . . . . . . . . . Recycling Units 7 | . 2 . . 4 . 1 . . Scanalyzers 1 | . . . . . . 1 . . Garrison Access . | . . . . . . . . . Total Hacks 148 | . 21 . 4 47 54 15 . 7 Successful 111 | . 13 . 4 36 54 3 . 1 Failed 37 | . 8 . . 11 . 12 . 6 Catastrophic 9 | . . . . 2 . 3 . 4 Database Lockouts . | . . . . . . . . . Manual 36 | . 18 . . 13 . 4 . 1 Terminals 53 | . 19 . . 18 . 9 . 7 Fabricators 1 | . . . . . . 1 . . Repair Stations . | . . . . . . . . . Recycling Units 10 | . 2 . . 5 . 3 . . Scanalyzers 2 | . . . . . . 2 . . Garrison Access . | . . . . . . . . . Terminal Hacks 92 | . 3 . 4 29 54 1 . 1 Record 80 | . . . 3 24 53 . . . Part Schematic 2 | . . . . 1 . . . 1 Robot Analysis 2 | . 1 . . 1 . . . . Prototype ID Bank 2 | . . . . 2 . . . . Locate Traps 2 | . 1 . . . . 1 . . Hauler Manifests 1 | . 1 . . . . . . . Zone Layout 1 | . . . . 1 . . . . Proto ID Catalog 2 | . . . 1 . 1 . . . Fabricator Hacks 1 | . . . . . . 1 . . Network Status 1 | . . . . . . 1 . . Repair Station Hacks . | . . . . . . . . . Recycling Unit Hacks . | . . . . . . . . . Scanalyzer . | . . . . . . . . . Garrison Access Hacks . | . . . . . . . . . Unauthorized Hacks 18 | . 10 . . 7 . 1 . . Terminals 11 | . 8 . . 3 . . . . Botnet 5 | . 3 . . 2 . . . . Skim 6 | . 5 . . 1 . . . . Fabricators . | . . . . . . . . . Repair Stations . | . . . . . . . . . Recycling Units 7 | . 2 . . 4 . 1 . . Tunnel 6 | . 2 . . 4 . . . . Fedlink 1 | . . . . . . 1 . . Scanalyzers . | . . . . . . . . . Garrison Access . | . . . . . . . . . Data Cores Recovered 1 | . 1 . . . . . . . Used 1 | . 1 . . . . . . . Hacking Detections 20 | . 6 . . 6 . 5 . 3 Full Trace Events 7 | . . . . . . 4 . 3 Feedback Events 1 | . . . . . . 1 . . Corruption 1 | . . . . . . 1 . . Feedback Blocked . | . . . . . . . . . Robot Schematics Acquired . | . . . . . . . . . Robots Built . | . . . . . . . . . Authchips . | . . . . . . . . . Time . | . . . . . . . . . Total Robot Build Rating . | . . . . . . . . . Part Schematics Acquired 2 | . . . . 1 . . . 1 Parts Built . | . . . . . . . . . Authchips . | . . . . . . . . . Time . | . . . . . . . . . Total Part Build Rating . | . . . . . . . . . Parts Repaired . | . . . . . . . . . Time . | . . . . . . . . . Parts Recycled . | . . . . . . . . . Recycled Matter . | . . . . . . . . . Retrieved Matter . | . . . . . . . . . Retrieved Components . | . . . . . . . . . Parts Scanalyzed . | . . . . . . . . . Part Schematics Acquired . | . . . . . . . . . Parts Damaged . | . . . . . . . . . Bothacking | -11 -10 -10 -10 -8 -8 -6 -6 -6 ------------ Run | Yrd Mat Min Sub Rec Scr Fac Was Fac Used RIF Installer . | . . . . . . . . . Robots Hacked . | . . . . . . . . . Non-combat . | . . . . . . . . . Combat . | . . . . . . . . . Robot Hacks Applied . | . . . . . . . . . Relay Couplers Released . | . . . . . . . . . Fabnet Peak Effective % . | . . . . . . . . . Robots Rewired . | . . . . . . . . . Allies Hacked . | . . . . . . . . . Hacks Repelled . | . . . . . . . . . Allies | -11 -10 -10 -10 -8 -8 -6 -6 -6 -------- Run | Yrd Mat Min Sub Rec Scr Fac Was Fac Total Allies 4 | . . 3 . . 1 . . . Largest Group 3 | . . 3 3 . 1 1 . . Highest-Rated Group 82 | . . 40 40 . 82 82 . . Highest-Rated Ally 82 | . . 16 16 . 82 82 . . Total Orders 2 | . . . . . 2 . . . STAY 1 | . . . . . 1 . . . FOLLOW 1 | . . . . . 1 . . . Ally Attacks 76 | . . . 34 . . 42 . . Total Damage 2724 | . . . 343 . . 2381 . . Kills 16 | . . . 3 . . 13 . . Allies Corrupted . | . . . . . . . . . Allies Melted . | . . . . . . . . . Intel | -11 -10 -10 -10 -8 -8 -6 -6 -6 ------- Run | Yrd Mat Min Sub Rec Scr Fac Was Fac Active Infowar (turns) 2584 | 49 761 . . . 61 753 230 730 Optics 1643 | . . . . . . 752 230 661 Terrain 506 | . . . . . . 53 230 223 Seismic 810 | 49 761 . . . . . . . Cloaking 174 | . . . . . . 105 . 69 ECM 62 | . . . . . 61 1 . . Robot Analysis Total 2 | . 1 . . 1 . . . . Derelict Logs Recovered 8 | . . 1 2 . 5 . . . Drone Launches . | . . . . . . . . . Drone Recoveries . | . . . . . . . . . Exploration | -11 -10 -10 -10 -8 -8 -6 -6 -6 ------------- Run | Yrd Mat Min Sub Rec Scr Fac Was Fac Turns Passed 27494 | 236 1813 1173 3048 3381 15427 768 230 1418 Spaces Moved 9034 | 109 1013 662 1875 845 3066 484 152 828 Core 65 | 4 . . 2 . . . . 59 Treads 5049 | 105 1013 662 185 494 2590 . . . Legs 243 | . . . . . . . . 243 Wheels 3591 | . . . 1688 351 476 412 152 512 Hover . | . . . . . . . . . Flight 86 | . . . . . . 72 . 14 Fastest Speed 35 | 50 160 160 110 179 80 85 115 35 Average Speed 284 | 155 160 160 150 389 494 115 124 103 Slowest Speed 557 | 160 160 160 500 557 557 140 130 180 Overloaded Moves . | . . . . . . . . . Propulsion Burnouts . | . . . . . . . . . Robots Hopped 1 | . . . . . . . . 1 Potential Cave-ins . | . . . . . . . . . Cave-ins Triggered . | . . . . . . . . . Exploration Rate (%) 63 | 5 100 98 70 98 95 10 85 9 Regions Visited 8 Branch Regions 4 Pre-discovered Areas 11 | . 4 2 . 4 1 . . . Known Exits Taken 2 | . 1 1 . . . . . . Unknown Exits Taken 4 | 1 . . 1 1 1 . . . Scrap Searched 17 | . . 1 13 . 3 . . . Spaces Dug 32 | . 2 . 6 16 . 7 . 1 Terrain Destroyed 254 | . 69 9 13 19 . 38 . 106 Melee . | . . . . . . . . . Projectile 47 | . 2 . 7 19 . 11 . 8 AOE 207 | . 67 9 6 . . 27 . 98 Terrain Rammed . | . . . . . . . . . Walls Destroyed . | . . . . . . . . . Machines Disabled . | . . . . . . . . . Actions | -11 -10 -10 -10 -8 -8 -6 -6 -6 --------- Run | Yrd Mat Min Sub Rec Scr Fac Was Fac Total 10433 | 139 1115 721 2049 916 3357 657 173 1306 Wait 662 | . 7 13 22 18 146 97 10 349 Move 9025 | 108 1012 661 1874 844 3065 484 151 826 Hop 1 | . . . . . . . . 1 Pick Up 162 | 5 19 5 43 7 64 10 1 8 Fast Attach 47 | 7 . . 12 3 2 11 . 12 Attach 29 | . 2 . 1 . 4 8 . 14 Detach 9 | . . . . . . 2 . 7 Swap 44 | 1 13 6 11 3 2 3 . 5 Drop 158 | 1 11 4 43 10 74 7 1 7 Fire 283 | 17 51 32 37 31 . 35 10 70 Melee . | . . . . . . . . . Ram 1 | . . . . . . . . 1 Kick 3 | . . . . . . . . 3 Crush . | . . . . . . . . . Escape Stasis . | . . . . . . . . . Rewire . | . . . . . . . . . Trap 3 | . . . . . . . . 3 Miscellaneous 6 | . . . 6 . . . . . Route ------- -11/Scrapyard -10/Materials (discovered 6 exits: *Mat x3 / *Min x2 / *Sub) -10/Mines (discovered 3 exits: *Mat x2 / *Sub) -10/Subcaves (discovered 3 exits: *Mat x2 / *Rec) -8/Recycling (discovered 2 exits: *Fac / *Scr) -8/Scraptown (discovered 2 exits: *Fac x2) -6/Factory (discovered 2 exits: [*Fac] / Ext) -6/Waste -6/Factory History --------- Turn | Location | Event 14 | -11/Scrapyard | Discovered new exit (range 15) 237 | -11/Scrapyard | Entered Materials 335 | -10/Materials | Build established: Mutant 506 | -10/Materials | Discovered new exit (range 6) 598 | -10/Materials | Discovered new exit (range 13) 929 | -10/Materials | Discovered new exit (range 9) 1090 | -10/Materials | Discovered new exit (range 7) 1126 | -10/Materials | Loaded intel: 5 trap records 1188 | -10/Materials | Identified exit to Materials 1188 | -10/Materials | Identified exit to Subcaves 1188 | -10/Materials | Learned location of 1 exit from Materials 1284 | -10/Materials | Learned Materials trap positions 1318 | -10/Materials | Loaded intel: 2 recycling unit locations 1355 | -10/Materials | Learned location of Storage (-8) 1380 | -10/Materials | Learned location of 2 exits from Subcaves 1416 | -10/Materials | Identified exit to Mines 1461 | -10/Materials | Learned location of 1 exit from Storage 1517 | -10/Materials | Learned location of Mines (-10) 2050 | -10/Materials | Entered Mines 2300 | -10/Mines | Learned location of Zion (-7) 2569 | -10/Mines | Discovered exit to Subcaves (range 14) 2592 | -10/Mines | Found a hidden stash of uninstalled traps 3091 | -10/Mines | Assisted by bots powering up and referring to "LRC-V3" 3223 | -10/Mines | Entered Subcaves 3223 | -10/Subcaves | Accompanied by 3 allies 3224 | -10/Subcaves | Identified exit to Materials 3532 | -10/Subcaves | A swath of the cavern ceiling suddenly collapsed 3637 | -10/Subcaves | Visited Clippyterm 3644 | -10/Subcaves | Learned Factory garrison access intel 3849 | -10/Subcaves | A Subdweller sparked back to life 3849 | -10/Subcaves | A Subdweller sparked back to life 3849 | -10/Subcaves | A Subdweller sparked back to life 3851 | -10/Subcaves | Core integrity fell below 50% 3896 | -10/Subcaves | Found Prototype Flight Unit 3921 | -10/Subcaves | Learned Materials terminal intel 4144 | -10/Subcaves | Build established: Subdweller-Mutant 4583 | -10/Subcaves | Disturbed a concealed Subdweller 4597 | -10/Subcaves | Learned Materials emergency access door positions 4696 | -10/Subcaves | Visited 4L-MR0's lab 4701 | -10/Subcaves | Identified Flightbrick 4712 | -10/Subcaves | Found Powered Cannon 4714 | -10/Subcaves | Attached Powered Cannon, gained temporary slot: Power 4897 | -10/Subcaves | Discovered new exit (range 15) 5309 | -10/Subcaves | Build established: Hauler-Mutant 6271 | -10/Subcaves | Entered Recycling 6913 | -8/Recycling | Discovered new exit (range 3) 6971 | -8/Recycling | Scanned before Scraplab entrance 7039 | -8/Recycling | Entered Scraplab 7077 | -8/Recycling | Discovered new exit (range 2) 9652 | -8/Recycling | Entered Scraptown 10538 | -8/Scraptown | Heard Great Nut preacher, LISTEN AND RECITE! 10599 | -8/Scraptown | Discovered new exit (range 11) 10755 | -8/Scraptown | Scanned Subdweller tech in exchange for log data 10766 | -8/Scraptown | Learned 8 Factory zone layouts 10772 | -8/Scraptown | Learned location of 2 exits from Research 10789 | -8/Scraptown | Learned Factory emergency access door positions 10934 | -8/Scraptown | Visited Red Mages 11117 | -8/Scraptown | Visited Symbiants 12088 | -8/Scraptown | Visited Assassins FH 12177 | -8/Scraptown | Visited Shadow of the Wyrm 12277 | -8/Scraptown | Visited SPCMW 12667 | -8/Scraptown | Visited Awakened 12862 | -8/Scraptown | Visited Cave Peace 13051 | -8/Scraptown | Visited UFD Registry 13051 | -8/Scraptown | Registered with UFD as "Roughcircuit" 13954 | -8/Scraptown | Received an X-ray algorithm 14004 | -8/Scraptown | Visited Botcube Research 14126 | -8/Scraptown | Visited Infowarlord's Domain 14215 | -8/Scraptown | Visited A0-MCA Data Center 14249 | -8/Scraptown | Given a D+ rating by A0-MCA 14433 | -8/Scraptown | Found A0-MCA's Component Scanner 14617 | -8/Scraptown | Delivered Scrap Shield to a Scientist 15252 | -8/Scraptown | Visited Junk Repository 15336 | -8/Scraptown | Visited Research Penetration Think Tank 15514 | -8/Scraptown | Visited Scrap Suit Storage 15642 | -8/Scraptown | Visited Abandonware Association 15704 | -8/Scraptown | Learned abandonware demo "HACKBUD.EXE" 15704 | -8/Scraptown | Learned abandonware demo "REBOOT5.EXE" 15887 | -8/Scraptown | Visited Observation Area 16160 | -8/Scraptown | Visited Science Testing Area 16272 | -8/Scraptown | Visited Science Guys 16994 | -8/Scraptown | Discovered new exit (range 5) 17595 | -8/Scraptown | Found Lrg. Botcube 23153 | -8/Scraptown | Found Scrap Suit 23507 | -8/Scraptown | Lrg. Botcube activated 23543 | -8/Scraptown | Lrg. Botcube completed mutation into treaded form, armed with 3 guns, 1 cannon. 23649 | -8/Scraptown | Found Exp. Terrain Scanner 25002 | -8/Scraptown | Met Optimus 25002 | -8/Scraptown | Accepted into 0bPrime 25079 | -8/Scraptown | Entered Factory 25079 | -6/Factory | Accompanied by 1 ally 25079 | -6/Factory | Evolved 8 slots: Propulsion x4, Utility x4 25080 | -6/Factory | Identified exit to Extension 25080 | -6/Factory | Attached Flightbrick, gained temporary slots: Utility x3 25082 | -6/Factory | Loaded intel: 3 garrison access locations 25140 | -6/Factory | Build established: Mutant 25568 | -6/Factory | Loaded intel: 8 recycling unit locations 25599 | -6/Factory | Discovered new exit (range 17) 25847 | -6/Factory | Sucked down chute 25847 | -6/Factory | Entered Waste 25858 | -6/Waste | Spotted C-40 Crusher 25862 | -6/Waste | EMP discharged 25862 | -6/Waste | System corruption reached 10% 25903 | -6/Waste | Destroyed C-40 Crusher 25945 | -6/Waste | Spotted C-40 Crusher 25945 | -6/Waste | Spotted C-40 Crusher 25948 | -6/Waste | Found Exp. Shield Generator 25962 | -6/Waste | EMP discharged 25988 | -6/Waste | Spotted C-40 Crusher 25997 | -6/Waste | Spotted C-40 Crusher 26000 | -6/Waste | Spotted C-40 Crusher 26001 | -6/Waste | Crushed by Compactor (0 parts destroyed, 1 dropped) 26042 | -6/Waste | Discovered new exit (range 22) 26062 | -6/Waste | EMP discharged 26077 | -6/Waste | Entered Factory 26106 | -6/Factory | Spotted B-75 Beast 26847 | -6/Factory | Lost 3 parts (1p1u1w) 27165 | -6/Factory | Lost 6 parts (1p3n2w) 27168 | -6/Factory | Build established: Scavenger-Mutant 27441 | -6/Factory | Core integrity fell below 50% 27454 | -6/Factory | Core integrity fell below 20% 27481 | -6/Factory | Lost 6 parts (4n1u1w) 27495 | -6/Factory | Destroyed by B-75 Beast with Magnetic Acceleration Cannon Last Messages --------------- 27440_ Carbon-fiber Leg destroyed. 27440_ Coil Gun destroyed. 27440_ Wheel destroyed. 27440_ Knocked back. 27444_ Discarded Core Analyzer. 27445_ Wheel destroyed. 27446_ Imp. VSS Leg destroyed. 27449_ J7CLHQOLWD LRVLPZGQUPD>JEWIWSM4B1VB=H> 27449_ Dropped Lrg. Storage Unit. 27450_ Exp. Shield Generator destroyed. 27451_ S-27 Virus destroyed. 27451_ Dropped Imp. Field Recycling Unit. 27453_ Acquired 5 matter. 27464_ System corrupted: Energy discharge (-16). 27464_ Acquired 2 matter. 27467_ Acquired 1 matter. 27469_ Acquired 18 matter. 27479_ System corrupted: Matter fused (-5). 27483_ S-27 Virus destroyed. 27488_ Acquired VTOL Module. Map ----- +----------------------------------------------------+ | ?????????????????????????????????#???#????? ?????? | | ?????????????????????????????? ????????????????#? | | ?????????????????????????????????? ?????????????? | | ???????????????????????????? ???????????"??????### | | ??????????????????????????????????????????????## | | ??????????????????????????????????????????"????# | | ?????????????????????? ??? ?????? ??????? ????# | | ?????????????????????????????#????????#????????# | | ?????????????????????????????????????????##????# | | ??????????????????? ???????????? ?? ???????????# | | ??????????????????? ????#???#??#? ?????????????# | | ??????????????????? ?????????#????? ??? ???????# | | ??????????????????? ???#????#?????? ? ?????????# | | ??????????????????? ########??#??? ???????? ??# | | ??????????????????# # #?#????????????? ?### | | ??????????????????# # #?? ??? ??"????????## | | ??????????????????# # """ #??#?????? ?????????# | | ??????????????????# # """ #??????#???????#????# | | ??????????????????# # """ ?????#????#?????#???# | | ?????????????????## # ??####??????###????###### | | ??????????????????# ##/#####T ########"####??# | | ??????????????????# u %%#??##% | | ??????????????????# t######## #?### | | ?????############## % #?######+##### | | ?????# + g #??# # | | ?????# """ ### ##@########?# # | | ?????# "" """ #?# # ?#?##??# # | | ?????# "" """ #?# # #?????# # | | ?????# "T #?# % # #??#??# # | | ?????# "" !! #?# * # #?????# # | | ?????# "" ! ### %[ ###;#####???# %/ | | ?????# # ##?## # | | ############/### ############### | | * B # #?### | | %!!! BB # #?# | | """" """ """" """"|!! + ### | | """" """ """" """ !!| ##### # ### | | """" %"" """" """" #???# ############# | | """" """" """" !![# ### ########## ## | | """" """" "" !![ # # # ## ######/## | | """" " "" """ ![[ # ######### ! = | | ### / | | ! ### ######### | | % #?# ## # | | #?############# # % | | #?????????????# # | | #?##????#?????### | | #???###????##??## | | #####??#??????### | | ######"#### ###"""#####???????# | +----------------------------------------------------+ Best States ------------- Heat Dissipation 51 Energy Generation 31 Energy Capacity 640 Matter Stores 300 Matter Capacity 300 Sight Range 22 Terrain Scan Range 30 Terrain Scan Density 10 ECM Strength 1 Cloak Strength 2 Armor Coverage 800 Evasion (%) 57 Target Analysis 5 Core Analysis 9 Recoil Reduction 2 Offensive Hacking 11 Item Schematics ----------------- Cryofiber Web | -8/Recycling | Hacked Arm. Treads | -6/Factory | Hacked Robot Schematics ------------------ None Fabricated ------------ Nothing Repaired ---------- Nothing Alien Tech Used ----------------- None Achievements -------------- None Challenges ------------ None Game ------ Seed GrapheneNovaPower Manual? 0 Play Time 01:45:07 Cumulative 283.5 hours Start 2025.06.07 @ 11:41:19 End 2025.06.07 @ 14:31:33 Sessions 3 Manual Loads 0 Difficulty Rogue Special Mode None Game No. 142 Rogue 142 Adventurer 0 Explorer 0 Win Type - Total 1 Types 0/0/0/0/1/0/0/0/0/0 Lore% 72 Gallery% 74 Achievement% 64 Wizard Run 0 Options --------- Layout 0 ASCII 0 Keyboard 0 Movement Mouse Keybinds 0 Fullscreen 1 Font 24/Smallcaps Map View 183x50 Zoom Use 0% Tactical HUD 1 Map Filters NONE Filters NONE Steam 0 RUN: 84cf9881-b7af-4878-b282-dfe9840a26c1